[Event "Vastgota Open 2023"]
[Site "Skara stadshotell, Jarnvagsgatan 5, Skara, Sweden"]
[Date "2023.02.18"]
[Round "5.12"]
[White "Johansson, Ulf"]
[Black "Cederqvist, Niclas"]
[Result "1-0"]
[TimeControl "15 minutes + 5 seconds per move from move one (Round 1 - 2) / 30 minutes + 10 seconds per move from move one (Round 3 - 9)"]
[WhiteFideId "1701380"]
[BlackFideId "1702076"]
[WhiteElo "2155"]
[BlackElo "1938"]

1. Nf3 {[%clk 00:30:17]} {[%emt 00:00:02]} d5 {[%clk 00:30:13]} {[%emt
00:00:07]} 2. g3 {[%clk 00:30:25]} {[%emt 00:00:03]} Nf6 {[%clk 00:30:13]}
{[%emt 00:00:09]} 3. Bg2 {[%clk 00:30:33]} {[%emt 00:00:02]} Bf5 {[%clk
00:30:01]} {[%emt 00:00:23]} 4. c4 {[%clk 00:28:57]} {[%emt 00:01:45]} c6
{[%clk 00:30:00]} {[%emt 00:00:11]} 5. b3 {[%clk 00:28:27]} {[%emt 00:00:39]}
e6 {[%clk 00:29:47]} {[%emt 00:00:23]} 6. Bb2 {[%clk 00:28:18]} {[%emt
00:00:19]} h6 {[%clk 00:29:32]} {[%emt 00:00:25]} 7. O-O {[%clk 00:28:14]}
{[%emt 00:00:14]} Be7 {[%clk 00:29:39]} {[%emt 00:00:03]} 8. d3 {[%clk
00:27:44]} {[%emt 00:00:41]} O-O {[%clk 00:29:32]} {[%emt 00:00:16]} 9. Nbd2
{[%clk 00:27:52]} {[%emt 00:00:02]} Bh7 {[%clk 00:28:11]} {[%emt 00:01:30]} 10.
a3 {[%clk 00:27:29]} {[%emt 00:00:34]} a5 {[%clk 00:28:13]} {[%emt 00:00:07]}
11. Rc1 {[%clk 00:26:30]} {[%emt 00:01:09]} dxc4 {[%clk 00:27:52]} {[%emt
00:00:32]} 12. Nxc4 {[%clk 00:26:24]} {[%emt 00:00:17]} Na6 {[%clk 00:27:41]}
{[%emt 00:00:20]} 13. Qd2 {[%clk 00:24:33]} {[%emt 00:02:00]} a4 {[%clk
00:26:26]} {[%emt 00:01:26]} 14. b4 {[%clk 00:24:29]} {[%emt 00:00:15]} Nc7
{[%clk 00:24:55]} {[%emt 00:01:41]} 15. Rfd1 {[%clk 00:22:07]} {[%emt
00:02:31]} Nb5 {[%clk 00:22:30]} {[%emt 00:02:34]} 16. e4 {[%clk 00:18:29]}
{[%emt 00:03:49]} c5 {[%clk 00:20:58]} {[%emt 00:01:42]} 17. bxc5 {[%clk
00:14:25]} {[%emt 00:04:15]} Bxc5 {[%clk 00:20:40]} {[%emt 00:00:27]} 18. Qf4
{[%clk 00:07:53]} {[%emt 00:06:41]} Be7 {[%clk 00:16:30]} {[%emt 00:04:20]} 19.
Qe3 {[%clk 00:07:14]} {[%emt 00:00:50]} Nd7 {[%clk 00:14:24]} {[%emt 00:02:16]}
20. d4 {[%clk 00:07:08]} {[%emt 00:00:16]} Nb6 {[%clk 00:13:51]} {[%emt
00:00:43]} 21. d5 {[%clk 00:06:12]} {[%emt 00:01:06]} Nxc4 {[%clk 00:13:33]}
{[%emt 00:00:29]} 22. Rxc4 {[%clk 00:06:20]} {[%emt 00:00:02]} Nd6 {[%clk
00:12:29]} {[%emt 00:01:14]} 23. Rcd4 {[%clk 00:05:11]} {[%emt 00:01:18]} Qb6
{[%clk 00:11:44]} {[%emt 00:00:55]} 24. Ba1 {[%clk 00:03:17]} {[%emt 00:02:04]}
exd5 {[%clk 00:11:26]} {[%emt 00:00:28]} 25. Rxd5 {[%clk 00:03:02]} {[%emt
00:00:26]} Qxe3 {[%clk 00:10:51]} {[%emt 00:00:45]} 26. fxe3 {[%clk 00:03:10]}
{[%emt 00:00:01]} Nxe4 {[%clk 00:09:51]} {[%emt 00:01:11]} 27. Rd7 {[%clk
00:02:55]} {[%emt 00:00:25]} Rfd8 {[%clk 00:08:59]} {[%emt 00:01:01]} 28. Rxd8+
{[%clk 00:02:53]} {[%emt 00:00:12]} Rxd8 {[%clk 00:09:08]} {[%emt 00:00:01]} 29.
Rxd8+ {[%clk 00:03:01]} {[%emt 00:00:02]} Bxd8 {[%clk 00:09:17]} {[%emt
00:00:01]} 30. Nd4 {[%clk 00:03:06]} {[%emt 00:00:05]} Be7 {[%clk 00:08:55]}
{[%emt 00:00:32]} 31. Bb2 {[%clk 00:03:15]} {[%emt 00:00:02]} Kf8 {[%clk
00:08:26]} {[%emt 00:00:38]} 32. Nb5 {[%clk 00:03:18]} {[%emt 00:00:08]} Bc5
{[%clk 00:07:42]} {[%emt 00:00:53]} 33. Bd4 {[%clk 00:02:55]} {[%emt 00:00:33]}
b6 {[%clk 00:07:22]} {[%emt 00:00:30]} 34. Bxe4 {[%clk 00:02:56]} {[%emt
00:00:10]} Bxe4 {[%clk 00:07:29]} {[%emt 00:00:02]} 35. Kf2 {[%clk 00:02:52]}
{[%emt 00:00:14]} Bxd4 {[%clk 00:07:17]} {[%emt 00:00:23]} 36. exd4 {[%clk
00:03:00]} {[%emt 00:00:01]} Ke7 {[%clk 00:07:10]} {[%emt 00:00:17]} 37. Ke3
{[%clk 00:03:09]} {[%emt 00:00:01]} Bc6 {[%clk 00:07:11]} {[%emt 00:00:08]} 38.
Nc3 {[%clk 00:03:17]} {[%emt 00:00:03]} Kd6 {[%clk 00:07:01]} {[%emt 00:00:20]}
39. Kd3 {[%clk 00:03:22]} {[%emt 00:00:05]} f5 {[%clk 00:06:25]} {[%emt
00:00:46]} 40. Kc4 {[%clk 00:03:31]} {[%emt 00:00:02]} g5 {[%clk 00:06:26]}
{[%emt 00:00:08]} 41. d5 {[%clk 00:03:29]} {[%emt 00:00:12]} Bd7 {[%clk
00:06:26]} {[%emt 00:00:10]} 42. Kd4 {[%clk 00:03:36]} {[%emt 00:00:04]} Be8
{[%clk 00:05:06]} {[%emt 00:01:30]} 43. Nd1 {[%clk 00:03:45]} {[%emt 00:00:01]}
f4 {[%clk 00:04:55]} {[%emt 00:00:20]} 44. gxf4 {[%clk 00:03:53]} {[%emt
00:00:02]} gxf4 {[%clk 00:05:04]} {[%emt 00:00:01]} 45. Nc3 {[%clk 00:03:41]}
{[%emt 00:00:23]} Bg6 {[%clk 00:03:08]} {[%emt 00:02:06]} 46. Nxa4 {[%clk
00:03:12]} {[%emt 00:00:39]} f3 {[%clk 00:02:47]} {[%emt 00:00:30]} 47. Ke3
{[%clk 00:03:21]} {[%emt 00:00:01]} b5 {[%clk 00:02:00]} {[%emt 00:00:57]} 48.
Nc3 {[%clk 00:03:30]} {[%emt 00:00:01]} f2 {[%clk 00:02:07]} {[%emt 00:00:03]}
49. Kxf2 {[%clk 00:03:39]} {[%emt 00:00:01]} Kc5 {[%clk 00:02:10]} {[%emt
00:00:07]} 50. Ke3 {[%clk 00:03:33]} {[%emt 00:00:16]} Kc4 {[%clk 00:01:51]}
{[%emt 00:00:29]} 51. d6 {[%clk 00:02:45]} {[%emt 00:00:59]} Be8 {[%clk
00:02:00]} {[%emt 00:00:01]} 52. Ne4 {[%clk 00:02:48]} {[%emt 00:00:06]} Kb3
{[%clk 00:01:35]} {[%emt 00:00:35]} 53. Nf6 {[%clk 00:02:20]} {[%emt 00:00:38]}
Bc6 {[%clk 00:01:36]} {[%emt 00:00:09]} 54. d7 {[%clk 00:02:29]} {[%emt
00:00:02]} Bxd7 {[%clk 00:01:45]} 55. Nxd7 {[%clk 00:02:37]} {[%emt 00:00:02]}
Kxa3 {[%clk 00:01:54]} 56. Kd3 {[%clk 00:02:28]} {[%emt 00:00:19]} b4 {[%clk
00:01:54]} {[%emt 00:00:10]} 57. Kc2 {[%clk 00:02:16]} {[%emt 00:00:23]} Ka2
{[%clk 00:01:31]} {[%emt 00:00:33]} 58. Nc5 {[%clk 00:02:23]} {[%emt 00:00:03]}
Ka3 {[%clk 00:01:39]} 59. h4 {[%clk 00:02:30]} {[%emt 00:00:03]} Ka2 {[%clk
00:01:44]} {[%emt 00:00:05]} 60. h5 {[%clk 00:02:32]} {[%emt 00:00:08]} Ka3
{[%clk 00:01:52]} {[%emt 00:00:02]} 61. Nb3 {[%clk 00:02:34]} {[%emt 00:00:09]}
Ka2 {[%clk 00:01:56]} {[%emt 00:00:06]} 62. Nd2 {[%clk 00:02:37]} {[%emt
00:00:06]} Ka3 {[%clk 00:02:02]} {[%emt 00:00:03]} 63. Kb1 {[%clk 00:02:44]}
{[%emt 00:00:05]} Ka4 {[%clk 00:01:58]} {[%emt 00:00:14]} 64. Ne4 {[%emt
00:00:19]} 1-0

[Event "Vastgota Open 2023"]
[Site "Skara stadshotell, Jarnvagsgatan 5, Skara, Sweden"]
[Date "2023.02.18"]
[Round "6.1"]
[White "Galperin, Platon"]
[Black "Golubka, Petro"]
[Result "1/2-1/2"]
[TimeControl "15 minutes + 5 seconds per move from move one (Round 1 - 2) / 30 minutes + 10 seconds per move from move one (Round 3 - 9)"]
[WhiteTitle "GM"]
[BlackTitle "GM"]
[WhiteFideId "14165414"]
[BlackFideId "14114224"]
[WhiteElo "2429"]
[BlackElo "2407"]

1. Nf3 {[%clk 00:30:18]} {[%emt 00:00:01]} Nf6 {[%clk 00:30:18]} {[%emt
00:00:03]} 2. g3 {[%clk 00:30:26]} {[%emt 00:00:01]} g6 {[%clk 00:30:24]}
{[%emt 00:00:05]} 3. Bg2 {[%clk 00:30:34]} {[%emt 00:00:01]} Bg7 {[%clk
00:30:30]} {[%emt 00:00:05]} 4. d4 {[%clk 00:30:42]} {[%emt 00:00:01]} d5
{[%clk 00:30:37]} {[%emt 00:00:04]} 5. c4 {[%clk 00:30:50]} {[%emt 00:00:01]}
O-O {[%clk 00:30:43]} {[%emt 00:00:05]} 6. O-O {[%clk 00:30:57]} {[%emt
00:00:02]} Nc6 {[%clk 00:30:51]} {[%emt 00:00:03]} 7. cxd5 {[%clk 00:31:04]}
{[%emt 00:00:02]} Nxd5 {[%clk 00:30:57]} {[%emt 00:00:03]} 8. e4 {[%clk
00:31:13]} {[%emt 00:00:02]} Nb6 {[%clk 00:31:03]} {[%emt 00:00:05]} 9. d5
{[%clk 00:31:21]} {[%emt 00:00:01]} Na5 {[%clk 00:31:09]} {[%emt 00:00:04]} 10.
Qe1 {[%clk 00:31:30]} {[%emt 00:00:02]} Nac4 {[%clk 00:31:14]} {[%emt
00:00:05]} 11. Nc3 {[%clk 00:31:38]} e6 {[%clk 00:31:19]} {[%emt 00:00:06]} 12.
Bg5 {[%clk 00:31:36]} {[%emt 00:00:11]} f6 {[%clk 00:30:55]} {[%emt 00:00:34]}
13. Bc1 {[%clk 00:31:44]} {[%emt 00:00:02]} e5 {[%clk 00:30:31]} {[%emt
00:00:35]} 14. b3 {[%clk 00:31:19]} {[%emt 00:00:34]} Nd6 {[%clk 00:30:40]}
{[%emt 00:00:02]} 15. a4 {[%clk 00:31:18]} {[%emt 00:00:11]} f5 {[%clk
00:30:03]} {[%emt 00:00:48]} 16. Ng5 {[%clk 00:29:56]} {[%emt 00:01:31]} a5
{[%clk 00:29:16]} {[%emt 00:00:58]} 17. Ne6 {[%clk 00:29:11]} {[%emt 00:00:54]}
Bxe6 {[%clk 00:29:20]} {[%emt 00:00:05]} 18. dxe6 {[%clk 00:29:19]} {[%emt
00:00:02]} Re8 {[%clk 00:27:32]} {[%emt 00:01:59]} 19. Be3 {[%clk 00:25:06]}
{[%emt 00:04:22]} Nbc8 {[%clk 00:25:56]} {[%emt 00:01:47]} 20. exf5 {[%clk
00:19:52]} {[%emt 00:05:23]} gxf5 {[%clk 00:25:51]} {[%emt 00:00:15]} 21. Rd1
{[%clk 00:18:44]} {[%emt 00:01:18]} c6 {[%clk 00:24:22]} {[%emt 00:01:40]} 22.
f4 {[%clk 00:18:52]} {[%emt 00:00:02]} exf4 {[%clk 00:22:26]} {[%emt 00:02:06]}
23. Bc5 {[%clk 00:12:02]} {[%emt 00:06:59]} Qf6 {[%clk 00:21:57]} {[%emt
00:00:40]} 24. Ne2 {[%clk 00:11:39]} {[%emt 00:00:32]} Qxe6 {[%clk 00:17:38]}
{[%emt 00:04:29]} 25. Nxf4 {[%clk 00:11:18]} {[%emt 00:00:31]} Qxe1 {[%clk
00:15:52]} {[%emt 00:01:56]} 26. Rfxe1 {[%clk 00:11:25]} {[%emt 00:00:03]} Ne4
{[%clk 00:12:02]} {[%emt 00:04:00]} 27. Rd7 {[%clk 00:05:02]} {[%emt 00:06:33]}
Ncd6 {[%clk 00:10:47]} {[%emt 00:01:25]} 28. Bb6 {[%clk 00:03:12]} {[%emt
00:01:59]} Ra6 {[%clk 00:09:48]} {[%emt 00:01:11]} 29. Be3 {[%clk 00:03:20]}
{[%emt 00:00:01]} Raa8 {[%clk 00:08:10]} {[%emt 00:01:48]} 30. Rd1 {[%clk
00:02:21]} {[%emt 00:01:09]} Nf6 {[%clk 00:06:44]} {[%emt 00:01:36]} 31. Rxg7+
{[%clk 00:01:46]} {[%emt 00:00:45]} Kxg7 {[%clk 00:06:49]} {[%emt 00:00:06]} 32.
Bd4 {[%clk 00:01:55]} {[%emt 00:00:01]} Nde4 {[%clk 00:06:14]} {[%emt
00:00:45]} 33. Bxe4 {[%clk 00:01:48]} {[%emt 00:00:16]} Rxe4 {[%clk 00:06:14]}
{[%emt 00:00:10]} 34. Nh5+ {[%clk 00:01:56]} {[%emt 00:00:02]} Kg6 {[%clk
00:06:17]} {[%emt 00:00:07]} 35. Nxf6 {[%clk 00:02:03]} {[%emt 00:00:03]} Rxd4
{[%clk 00:06:21]} {[%emt 00:00:07]} 36. Rxd4 {[%clk 00:02:11]} {[%emt
00:00:01]} Kxf6 {[%clk 00:06:30]} {[%emt 00:00:02]} 37. Rd7 {[%clk 00:02:19]}
{[%emt 00:00:01]} Ke5 {[%clk 00:06:09]} {[%emt 00:00:21]} 1/2-1/2

[Event "Vastgota Open 2023"]
[Site "Skara stadshotell, Jarnvagsgatan 5, Skara, Sweden"]
[Date "2023.02.18"]
[Round "6.2"]
[White "Seo, Jung Min"]
[Black "Chatalbashev, Boris"]
[Result "1-0"]
[TimeControl "15 minutes + 5 seconds per move from move one (Round 1 - 2) / 30 minutes + 10 seconds per move from move one (Round 3 - 9)"]
[WhiteTitle "IM"]
[BlackTitle "GM"]
[WhiteFideId "1734687"]
[BlackFideId "2900440"]
[WhiteElo "2448"]
[BlackElo "2522"]

1. d4 {[%clk 00:30:19]} {[%emt 00:16:33]} Nf6 {[%clk 00:30:17]} {[%emt
00:00:03]} 2. c4 {[%clk 00:30:29]} g6 {[%clk 00:30:21]} {[%emt 00:00:07]} 3.
Nc3 {[%clk 00:30:16]} {[%emt 00:00:23]} d5 {[%clk 00:30:29]} {[%emt 00:00:01]}
4. cxd5 {[%clk 00:29:18]} {[%emt 00:01:09]} Nxd5 {[%clk 00:30:37]} {[%emt
00:00:02]} 5. e4 {[%clk 00:29:26]} {[%emt 00:00:02]} Nxc3 {[%clk 00:30:45]}
{[%emt 00:00:01]} 6. bxc3 {[%clk 00:29:35]} {[%emt 00:00:02]} Bg7 {[%clk
00:30:53]} {[%emt 00:00:02]} 7. Nf3 {[%clk 00:29:30]} {[%emt 00:00:15]} c5
{[%clk 00:31:01]} {[%emt 00:00:01]} 8. Be3 {[%clk 00:27:15]} {[%emt 00:02:26]}
Qa5 {[%clk 00:30:49]} {[%emt 00:00:22]} 9. Qd2 {[%clk 00:26:11]} {[%emt
00:01:14]} O-O {[%clk 00:30:55]} {[%emt 00:00:03]} 10. Rb1 {[%clk 00:24:48]}
{[%emt 00:01:33]} Nd7 {[%clk 00:30:22]} {[%emt 00:00:44]} 11. Bd3 {[%clk
00:24:08]} {[%emt 00:00:50]} b6 {[%clk 00:26:18]} {[%emt 00:04:14]} 12. O-O
{[%clk 00:24:08]} {[%emt 00:00:09]} Ba6 {[%clk 00:26:26]} {[%emt 00:00:02]} 13.
Bxa6 {[%clk 00:23:14]} {[%emt 00:01:05]} Qxa6 {[%clk 00:26:35]} 14. Rfc1 {[%clk
00:23:14]} {[%emt 00:00:10]} Rad8 {[%clk 00:25:44]} {[%emt 00:01:00]} 15. d5
{[%clk 00:22:52]} {[%emt 00:00:33]} Qc4 {[%clk 00:23:50]} {[%emt 00:02:05]} 16.
Qc2 {[%clk 00:23:01]} Ne5 {[%clk 00:23:43]} {[%emt 00:00:16]} 17. Nd2 {[%clk
00:22:09]} {[%emt 00:01:01]} Qd3 {[%clk 00:21:29]} {[%emt 00:02:25]} 18. c4
{[%clk 00:21:56]} {[%emt 00:00:23]} f5 {[%clk 00:20:54]} {[%emt 00:00:45]} 19.
exf5 {[%clk 00:21:31]} {[%emt 00:00:35]} Rxf5 {[%clk 00:18:58]} {[%emt
00:02:05]} 20. Ne4 {[%clk 00:20:15]} {[%emt 00:01:27]} Qxc2 {[%clk 00:16:48]}
{[%emt 00:02:20]} 21. Rxc2 {[%clk 00:20:19]} {[%emt 00:00:06]} Ng4 {[%clk
00:16:54]} {[%emt 00:00:04]} 22. Bg5 {[%clk 00:17:10]} {[%emt 00:03:17]} Nf6
{[%clk 00:14:58]} {[%emt 00:02:08]} 23. Nxf6+ {[%clk 00:17:05]} {[%emt
00:00:15]} exf6 {[%clk 00:13:52]} {[%emt 00:01:16]} 24. Be3 {[%clk 00:17:11]}
{[%emt 00:00:03]} Re5 {[%clk 00:13:57]} {[%emt 00:00:06]} 25. a4 {[%clk
00:17:14]} {[%emt 00:00:07]} f5 {[%clk 00:12:57]} {[%emt 00:01:10]} 26. g3
{[%clk 00:15:57]} {[%emt 00:01:26]} Re4 {[%clk 00:11:54]} {[%emt 00:01:14]} 27.
a5 {[%clk 00:15:54]} {[%emt 00:00:13]} bxa5 {[%clk 00:09:07]} {[%emt 00:02:57]}
28. Rb5 {[%clk 00:13:47]} {[%emt 00:02:16]} Bd4 {[%clk 00:08:02]} {[%emt
00:01:16]} 29. Rxa5 {[%clk 00:12:48]} {[%emt 00:01:10]} Bxe3 {[%clk 00:07:49]}
{[%emt 00:00:22]} 30. fxe3 {[%clk 00:12:57]} {[%emt 00:00:01]} Rxe3 {[%clk
00:07:42]} {[%emt 00:00:17]} 31. Rxa7 {[%clk 00:11:40]} {[%emt 00:01:28]} Rb8
{[%clk 00:06:28]} {[%emt 00:01:23]} 32. Rc7 {[%clk 00:11:27]} {[%emt 00:00:19]}
g5 {[%clk 00:05:02]} {[%emt 00:01:40]} 33. Rf2 {[%clk 00:11:11]} {[%emt
00:00:26]} Rb1+ {[%clk 00:03:17]} {[%emt 00:01:55]} 34. Kg2 {[%clk 00:11:05]}
{[%emt 00:00:16]} g4 {[%clk 00:03:01]} {[%emt 00:00:26]} 35. Ra2 {[%clk
00:09:58]} {[%emt 00:01:17]} Kf8 {[%clk 00:02:18]} {[%emt 00:00:54]} 36. Ra8+
{[%clk 00:09:51]} {[%emt 00:00:16]} Re8 {[%clk 00:02:26]} {[%emt 00:00:03]} 37.
Rb8 {[%emt 00:00:02]} Rd8 38. Rxd8# {[%clk 00:09:58]} Ke8 {[%clk 00:02:35]}
{[%emt 00:00:02]} 1-0

[Event "Vastgota Open 2023"]
[Site "Skara stadshotell, Jarnvagsgatan 5, Skara, Sweden"]
[Date "2023.02.18"]
[Round "6.3"]
[White "Miezis, Normunds"]
[Black "Palchuk, Andrii"]
[Result "0-1"]
[TimeControl "15 minutes + 5 seconds per move from move one (Round 1 - 2) / 30 minutes + 10 seconds per move from move one (Round 3 - 9)"]
[WhiteTitle "GM"]
[BlackTitle "FM"]
[WhiteFideId "11600136"]
[BlackFideId "14176688"]
[WhiteElo "2502"]
[BlackElo "2238"]

1. c4 {[%clk 00:30:17]} {[%emt 00:00:03]} Nf6 {[%clk 00:30:16]} {[%emt
00:00:04]} 2. Nc3 {[%clk 00:30:22]} {[%emt 00:00:05]} e6 {[%clk 00:30:20]}
{[%emt 00:00:06]} 3. e4 {[%emt 00:01:08]} d5 {[%clk 00:29:30]} 4. exd5 {[%clk
00:30:26]} {[%emt 00:00:07]} exd5 {[%clk 00:29:37]} {[%emt 00:00:03]} 5. d4
{[%clk 00:30:32]} {[%emt 00:00:04]} Be7 {[%clk 00:28:47]} {[%emt 00:01:00]} 6.
Nf3 {[%clk 00:30:33]} {[%emt 00:00:09]} O-O {[%clk 00:28:48]} {[%emt 00:00:08]}
7. Be2 {[%clk 00:30:33]} {[%emt 00:00:10]} dxc4 {[%clk 00:28:56]} {[%emt
00:00:03]} 8. Bxc4 {[%clk 00:30:33]} {[%emt 00:00:09]} Nbd7 {[%clk 00:29:03]}
{[%emt 00:00:03]} 9. O-O {[%clk 00:30:32]} {[%emt 00:00:11]} Nb6 {[%clk
00:29:11]} {[%emt 00:00:03]} 10. Bb3 {[%clk 00:30:34]} {[%emt 00:00:07]} c6
{[%clk 00:29:19]} {[%emt 00:00:03]} 11. Re1 {[%clk 00:30:28]} {[%emt 00:00:16]}
Nbd5 {[%clk 00:28:01]} {[%emt 00:01:27]} 12. h3 {[%clk 00:29:43]} {[%emt
00:00:56]} Re8 {[%clk 00:27:56]} {[%emt 00:00:15]} 13. Bg5 {[%clk 00:28:57]}
{[%emt 00:00:55]} Be6 {[%clk 00:27:07]} {[%emt 00:00:59]} 14. Ne5 {[%clk
00:27:40]} {[%emt 00:01:28]} Nc7 {[%clk 00:23:10]} {[%emt 00:04:07]} 15. Bc2
{[%clk 00:26:57]} {[%emt 00:00:53]} Nfd5 {[%clk 00:22:51]} {[%emt 00:00:28]} 16.
Bxe7 {[%clk 00:24:54]} {[%emt 00:02:13]} Qxe7 {[%clk 00:21:20]} {[%emt
00:01:42]} 17. a3 {[%clk 00:23:22]} {[%emt 00:01:43]} Rad8 {[%clk 00:21:15]}
{[%emt 00:00:14]} 18. Qf3 {[%clk 00:23:06]} {[%emt 00:00:25]} Qf6 {[%clk
00:14:41]} {[%emt 00:06:44]} 19. Qg3 {[%clk 00:22:04]} {[%emt 00:01:11]} Qf4
{[%clk 00:14:21]} {[%emt 00:00:31]} 20. Qd3 {[%clk 00:20:52]} {[%emt 00:01:22]}
Nf6 {[%clk 00:14:07]} {[%emt 00:00:24]} 21. Rad1 {[%clk 00:19:24]} {[%emt
00:01:39]} g6 {[%clk 00:11:11]} {[%emt 00:03:06]} 22. Qe3 {[%clk 00:15:54]}
{[%emt 00:03:40]} Ncd5 {[%clk 00:10:45]} {[%emt 00:00:36]} 23. Qxf4 {[%clk
00:13:34]} {[%emt 00:02:29]} Nxf4 {[%clk 00:10:53]} {[%emt 00:00:02]} 24. f3
{[%clk 00:13:14]} {[%emt 00:00:30]} Kg7 {[%clk 00:10:21]} {[%emt 00:00:42]} 25.
Kf2 {[%clk 00:13:14]} {[%emt 00:00:11]} Nd7 {[%clk 00:09:11]} {[%emt 00:01:20]}
26. h4 {[%clk 00:10:17]} {[%emt 00:03:07]} Nb6 {[%clk 00:04:55]} {[%emt
00:04:26]} 27. g3 {[%clk 00:08:53]} {[%emt 00:01:34]} Nfd5 {[%clk 00:05:04]}
{[%emt 00:00:01]} 28. Ne4 {[%clk 00:05:33]} {[%emt 00:03:30]} Nc7 {[%clk
00:02:36]} {[%emt 00:02:39]} 29. Nc5 {[%clk 00:04:33]} {[%emt 00:01:09]} Bc8
{[%clk 00:02:29]} {[%emt 00:00:17]} 30. Bb3 {[%clk 00:04:38]} {[%emt 00:00:05]}
Nbd5 {[%clk 00:01:42]} {[%emt 00:00:57]} 31. a4 {[%clk 00:04:21]} {[%emt
00:00:28]} f6 {[%clk 00:01:38]} {[%emt 00:00:13]} 32. Nc4 {[%clk 00:04:05]}
{[%emt 00:00:26]} b6 {[%clk 00:01:00]} {[%emt 00:00:48]} 33. Ne4 {[%clk
00:03:45]} {[%emt 00:00:30]} Ba6 {[%clk 00:00:59]} {[%emt 00:00:12]} 34. h5
{[%clk 00:02:23]} {[%emt 00:01:31]} Re7 {[%clk 00:00:41]} {[%emt 00:00:28]} 35.
h6+ {[%clk 00:01:49]} {[%emt 00:00:45]} Kxh6 {[%clk 00:00:35]} {[%emt
00:00:16]} 36. Nxf6 {[%clk 00:01:56]} {[%emt 00:00:02]} Rxe1 {[%clk 00:00:43]}
{[%emt 00:00:03]} 37. Ng4+ {[%clk 00:02:03]} {[%emt 00:00:02]} Kg7 {[%clk
00:00:49]} {[%emt 00:00:05]} 38. Rxe1 {[%clk 00:02:11]} {[%emt 00:00:02]} h5
{[%clk 00:00:38]} {[%emt 00:00:21]} 39. Nge5 {[%clk 00:02:18]} {[%emt
00:00:02]} Nb4 {[%clk 00:00:47]} 40. Rd1 {[%clk 00:02:04]} {[%emt 00:00:24]}
Bxc4 {[%clk 00:00:21]} {[%emt 00:00:37]} 41. Bxc4 {[%clk 00:02:06]} {[%emt
00:00:07]} c5 {[%clk 00:00:30]} {[%emt 00:00:01]} 42. f4 {[%clk 00:01:33]}
{[%emt 00:00:43]} Rxd4 {[%clk 00:00:21]} {[%emt 00:00:19]} 43. Rxd4 {[%clk
00:01:36]} {[%emt 00:00:06]} cxd4 {[%clk 00:00:31]} {[%emt 00:00:01]} 44. Kf3
{[%clk 00:01:13]} {[%emt 00:00:33]} Kf6 {[%clk 00:00:27]} {[%emt 00:00:14]} 45.
Ke4 {[%clk 00:01:20]} {[%emt 00:00:04]} g5 {[%clk 00:00:30]} {[%emt 00:00:07]}
46. Nd7+ {[%clk 00:00:37]} {[%emt 00:00:52]} Ke7 {[%clk 00:00:39]} {[%emt
00:00:01]} 47. Ne5 {[%clk 00:00:45]} {[%emt 00:00:02]} Kf6 {[%clk 00:00:30]}
{[%emt 00:00:20]} 48. Nf3 {[%clk 00:00:26]} {[%emt 00:00:29]} gxf4 {[%clk
00:00:37]} {[%emt 00:00:03]} 49. gxf4 {[%clk 00:00:32]} {[%emt 00:00:03]} d3
{[%clk 00:00:42]} {[%emt 00:00:05]} 50. f5 {[%clk 00:00:33]} {[%emt 00:00:09]}
Ne8 {[%clk 00:00:45]} {[%emt 00:00:07]} 51. Kf4 {[%clk 00:00:36]} {[%emt
00:00:06]} Nd6 {[%clk 00:00:36]} {[%emt 00:00:20]} 52. Be6 {[%clk 00:00:42]}
{[%emt 00:00:04]} Nc6 {[%clk 00:00:26]} {[%emt 00:00:20]} 53. Bd7 {[%clk
00:00:14]} {[%emt 00:00:38]} Nd4 {[%clk 00:00:21]} {[%emt 00:00:16]} 54. Nd2
{[%clk 00:00:17]} {[%emt 00:00:07]} N4xf5 {[%clk 00:00:26]} {[%emt 00:00:05]}
55. Bxf5 {[%clk 00:00:17]} {[%emt 00:00:09]} Nxf5 {[%clk 00:00:35]} {[%emt
00:00:01]} 56. Ke4 {[%clk 00:00:25]} {[%emt 00:00:02]} h4 {[%clk 00:00:35]}
{[%emt 00:00:10]} 57. Nf3 {[%clk 00:00:34]} {[%emt 00:00:02]} h3 {[%clk
00:00:38]} {[%emt 00:00:06]} 58. Kxd3 {[%clk 00:00:42]} {[%emt 00:00:02]} Nh4
{[%clk 00:00:26]} {[%emt 00:00:22]} 59. Nh2 {[%clk 00:00:46]} {[%emt 00:00:06]}
Kf5 {[%clk 00:00:29]} {[%emt 00:00:07]} 60. Ke3 {[%clk 00:00:53]} {[%emt
00:00:03]} Ng6 {[%clk 00:00:36]} {[%emt 00:00:03]} 61. b4 {[%clk 00:01:00]}
{[%emt 00:00:03]} Ne5 {[%clk 00:00:43]} {[%emt 00:00:03]} 62. Nf1 {[%clk
00:00:58]} {[%emt 00:00:11]} Nc6 {[%clk 00:00:37]} {[%emt 00:00:17]} 63. b5
{[%clk 00:01:06]} {[%emt 00:00:02]} Na5 {[%clk 00:00:34]} {[%emt 00:00:13]} 64.
Kd4 {[%clk 00:00:51]} {[%emt 00:00:25]} Ke6 {[%clk 00:00:32]} {[%emt 00:00:13]}
65. Nh2 {[%clk 00:00:55]} {[%emt 00:00:05]} Nb7 {[%clk 00:00:39]} {[%emt
00:00:04]} 66. Kc4 {[%clk 00:00:59]} {[%emt 00:00:05]} Ke5 {[%clk 00:00:45]}
{[%emt 00:00:04]} 67. Ng4+ {[%clk 00:01:01]} {[%emt 00:00:08]} Kf4 {[%clk
00:00:52]} {[%emt 00:00:03]} 68. Nh2 {[%clk 00:01:10]} Ke4 {[%clk 00:01:01]}
{[%emt 00:00:01]} 69. Ng4 {[%clk 00:01:18]} {[%emt 00:00:02]} Nd6+ {[%clk
00:01:08]} {[%emt 00:00:03]} 70. Kb4 {[%clk 00:01:26]} {[%emt 00:00:02]} Kf4
{[%clk 00:01:08]} {[%emt 00:00:09]} 71. Nh2 {[%clk 00:01:33]} {[%emt 00:00:04]}
Nf5 {[%clk 00:00:59]} {[%emt 00:00:19]} 72. Kc4 {[%clk 00:01:39]} {[%emt
00:00:04]} Ke4 {[%clk 00:00:50]} {[%emt 00:00:19]} 73. Kc3 {[%clk 00:01:36]}
{[%emt 00:00:13]} Ne3 {[%clk 00:00:53]} {[%emt 00:00:07]} 74. Kd2 {[%clk
00:01:39]} {[%emt 00:00:07]} Kf4 {[%clk 00:01:01]} {[%emt 00:00:02]} 75. Ke2
{[%clk 00:01:31]} {[%emt 00:00:18]} Ng4 {[%clk 00:01:09]} {[%emt 00:00:02]} 76.
Nf1 {[%clk 00:01:11]} {[%emt 00:00:31]} h2 {[%clk 00:01:17]} {[%emt 00:00:01]}
77. Nxh2 {[%clk 00:01:14]} {[%emt 00:00:06]} Nxh2 {[%clk 00:01:26]} {[%emt
00:00:02]} 78. Kd3 {[%clk 00:01:22]} {[%emt 00:00:02]} Ke5 {[%clk 00:01:35]} 79.
Kc4 {[%clk 00:01:31]} {[%emt 00:00:02]} Ng4 {[%clk 00:01:40]} {[%emt 00:00:04]}
80. a5 {[%clk 00:01:38]} {[%emt 00:00:03]} Ne3+ {[%clk 00:01:49]} 0-1